Cogmind - Beta 15 @@@ ROGUE MODE // 2025.05.26 @ 16:05:13 Player: acra Result: Destroyed by YI-UF0 with YI-UF0's Doublenader Performance ------------- Evolutions (0) 0 Regions Visited (2) 400 Robots Destroyed (5) 25 Value Destroyed (56) 56 Prototype IDs (0) 0 Alien Tech Used (0) 0 Bonus (0) 0 TOTAL SCORE: 481 Bonus ------- None Cogmind --------- Core Integrity 0/250 Matter 138/300 Energy 99/100 System Corruption 0% Temperature Cool (0) Movement Core (50) Location -10/Mines Parts ------- > --- POWER (1) -------- (None) > --- PROPULSION (2) --- (None) > --- UTILITY (2) ------ (None) > --- WEAPON (2) ------- (None) > --- INVENTORY (5) ---- Light Ion Engine Aluminum Leg Flight Unit Flight Unit Assault Rifle Peak State ------------ > --- POWER ------------ (None) > --- PROPULSION ------- Flight Unit Flight Unit > --- UTILITY ---------- Small Storage Unit Hacking Suite > --- WEAPON ----------- Assault Rifle Grenade Launcher > --- INVENTORY -------- Light Ion Engine Light Ion Engine Aluminum Leg Aluminum Leg Flight Unit Flight Unit Assault Rifle Assault Rifle [Rating: 8] Favorites ----------- Power Light Ion Engine Engine Light Ion Engine Propulsion Flight Unit Leg Aluminum Leg Wheel Wheel Flight Unit Flight Unit Utility Small Storage Unit Storage Small Storage Unit Hackware Hacking Suite Protection Propulsion Shielding Weapon Assault Rifle Energy Gun EM Pulse Gun Ballistic Gun Assault Rifle Launcher Grenade Launcher Build | -11 -10 -10 ------- Run | Yrd Mat Min Slots Evolved . | . . . Power . | . . . Propulsion . | . . . Utility . | . . . Weapon . | . . . Parts Attached 15 | 8 5 2 Power 1 | 1 . . Engine 1 | 1 . . Core . | . . . Reactor . | . . . Propulsion 5 | 3 2 . Treads . | . . . Leg 2 | 2 . . Wheel 1 | 1 . . Hover . | . . . Flight 2 | . 2 . Utility 3 | 1 2 . Device . | . . . Storage 1 | 1 . . Processor . | . . . Hackware 1 | . 1 . Protection 1 | . 1 . Artifact . | . . . Weapon 6 | 3 1 2 Energy Gun 1 | 1 . . Energy Cannon . | . . . Ballistic Gun 4 | 2 1 1 Ballistic Cannon . | . . . Launcher 1 | . . 1 Special Weapon . | . . . Impact Weapon . | . . . Slashing Weapon . | . . . Piercing Weapon . | . . . Special Melee Weapon . | . . . Unidentified Prototypes . | . . . Parts Lost 6 | . . 6 Power . | . . . Propulsion 2 | . . 2 Utility 2 | . . 2 Weapon 2 | . . 2 Highest Loss Streak 6 | . . 6 To Critical Strikes . | . . . Average Backups 5 | 1 6 7 Power 1 | . 1 2 Propulsion 2 | . 2 4 Utility . | . . . Weapon 1 | . 1 1 Tool/Special . | . . . Unused Backups 3 | . . 3 Power 1 | . . 1 Propulsion 2 | . . 2 Utility . | . . . Weapon . | . . . Tool/Special . | . . . Average Slot Usage (%) 75 | . 78 66 Engine 5 | . 7 . Leg 4 | . 6 . Wheel 4 | . 6 . Flight 16 | . 14 21 Storage 14 | . 14 14 Hackware 5 | . 1 14 Protection 3 | . 4 . Energy Gun 5 | . 7 . Ballistic Gun 14 | . 14 14 Peak Build Rating 8 | 6 7 8 Average Rating 5 | 4 5 6 On Entrance 4 | . 6 7 Naked Turns . | . . . Heaviest Build 12 | 12 12 10 Greatest Support 20 | 20 10 8 Greatest Overweight (x) 2 | 1 1 2 Average Overweight (x) . | . . . Largest Inventory Capacity 8 | 8 8 8 Average Capacity 7 | 6 8 8 Most Carried 8 | 4 8 8 Average Carried 5 | 1 6 7 Final Capacity 8 | 8 8 5 Final Carried 8 | 3 8 5 Class Distribution -------------------- 100% | Mutant Dominant Class ---------------- Mutant | -10/Materials Mutant | -10/Mines Resources | -11 -10 -10 ----------- Run | Yrd Mat Min Matter Collected 207 | 196 11 . Remotely . | . . . Salvage Created 72 | . 61 11 Parts 8 | . 6 2 Haulers Intercepted . | . . . Recyclers Shooed . | . . . Parts Field Recycled . | . . . Retrieved Matter . | . . . Parts Self-Destructed . | . . . Prevented . | . . . Kills | -11 -10 -10 ------- Run | Yrd Mat Min Combat Hostiles Destroyed 4 | . 3 1 Guns 4 | . 3 1 Classes Destroyed 2 | . 2 . Operator 1 | . 1 . Swarmer 4 | . 3 1 Best Kill Streak 3 | . 3 1 Combat Bots Only 3 | . 3 1 Max Kills in Single Turn 1 | . 1 1 Gunslinging . | . . . Exploded . | . . . Melee . | . . . Uniques/NPCs Destroyed . | . . . Combat | -11 -10 -10 -------- Run | Yrd Mat Min Hostile Shots Fired 40 | . 7 33 Missed 10 | . 1 9 Hits 30 | . 6 24 Projectile 30 | . 6 24 AOE 13 | . . 13 Damage Taken 679 | . 52 627 Core 250 | . 8 242 Absorbed by Shields . | . . . Core Remaining (%) 100 | 100 . . Volleys Fired 12 | . 7 5 Largest 2 | . 2 2 Hottest 60 | . 60 50 Shots Fired 17 | . 11 6 Gun 16 | . 11 5 Cannon . | . . . Launcher 1 | . . 1 Special . | . . . Kinetic 13 | . 8 5 Thermal . | . . . Explosive 1 | . . 1 Electromagnetic 3 | . 3 . Robot Hit Streak 3 | . 3 1 Robot Miss Streak 5 | . 1 5 Penetration Max . | . . . Secondary Targets 2 | . 2 . Max Gunslinging Chain 1 | . 1 . Shots Hit Robots 8 | . 7 1 Core Hits 5 | . 4 1 Critical Kills . | . . . Critical Parts Destroyed . | . . . Critical Strikes 1 | . 1 . Corrupt 1 | . 1 . Melee Attacks . | . . . Impact . | . . . Slashing . | . . . Piercing . | . . . Sneak Attacks . | . . . Combat Hostiles . | . . . Follow-up Attacks . | . . . Damage Inflicted 97 | . 85 12 Guns 97 | . 85 12 Cannons . | . . . Explosions . | . . . Melee . | . . . Ramming . | . . . Kinetic 65 | . 53 12 Thermal . | . . . Explosive . | . . . Electromagnetic 32 | . 32 . Impact . | . . . Slashing . | . . . Piercing . | . . . Highest Corruption . | . . . Average Corruption . | . . . Corruption Purged . | . . . Corruption Blocked . | . . . Overload Shots . | . . . Overflow Damage 4 | . . 4 Projectiles . | . . . Explosions 4 | . . 4 Melee . | . . . Knockbacks . | . . . Impact . | . . . Kinetic . | . . . Secondary . | . . . Self-Inflicted Damage 39 | . . 39 Shots 1 | . . 1 Rammed . | . . . Targets Rammed . | . . . Kicked . | . . . Crushed . | . . . Highest Temperature . | . . . Average Temperature . | . . . Received Heat Transfer 15 | . . 15 Siege Activations . | . . . Martial Activations . | . . . Shielding Activations . | . . . Robots Disrupted . | . . . Combat Hostiles . | . . . Robots Corrupted . | . . . Combat Hostiles . | . . . Parts Fried . | . . . Impact Corruptions . | . . . Robots Melted . | . . . Combat Hostiles . | . . . Parts Melted . | . . . Heat Transferred . | . . . Parts Sabotaged . | . . . Parts Stolen . | . . . Parts Stripped . | . . . Power Chain Reactions . | . . . Alert | -11 -10 -10 ------- Run | Yrd Mat Min Maximum Alert Level . | . . . Low Security (%) 100 | 100 100 100 Level 1 . | . . . Level 2 . | . . . Level 3 . | . . . Level 4 . | . . . Level 5 . | . . . High Security . | . . . Max Security . | . . . Peak Influence 70 | . 70 60 Initial 25 | . . 25 Average 31 | . 41 36 Influence Increases 174 | . 106 68 Destroy 0b10 Robot/C 80 | . 60 20 Destroy 0b10 Robot/NC 5 | . 5 . Destroy Leader 10 | . 10 . Successful Hack 16 | . 16 . Destroy Structure 3 | . . 3 Partial Spotted 15 | . 15 . Lose Combat Pursuer 45 | . . 45 Influence Decreases 161 | . 40 121 Entered New Map 41 | . . 41 Time Decay 60 | . 40 20 Lost Part 60 | . . 60 Squads Dispatched 1 | . 1 . Investigation . | . . . Extermination . | . . . Reinforcement 1 | . 1 . Assault . | . . . Garrison . | . . . Intercept . | . . . Searches Triggered . | . . . Construction Impeded . | . . . Haulers Reinforced . | . . . Active Scanning Responses . | . . . Cargo Convoy Interrupts . | . . . Stealth | -11 -10 -10 --------- Run | Yrd Mat Min Distress Signals . | . . . Communications Jammed . | . . . Distress Signals . | . . . Times Spotted 12 | . 4 8 Peak Tracking Total 5 | . 3 5 Tactical Retreats 2 | . . 2 Traps | -11 -10 -10 ------- Run | Yrd Mat Min Traps Triggered . | . . . Indirectly . | . . . Trap Hack Attempts . | . . . Triggered . | . . . Disarmed . | . . . Reprogrammed . | . . . Reused . | . . . Traps Extracted . | . . . Installed . | . . . Triggered . | . . . Machines | -11 -10 -10 ---------- Run | Yrd Mat Min Machines Disabled . | . . . Max in Single Turn . | . . . Machines Repaired . | . . . Machines Dismantled . | . . . Machines Sabotaged . | . . . Overloaded Fab Kills . | . . . Hacking | -11 -10 -10 --------- Run | Yrd Mat Min Machines Accessed 3 | . 3 . Terminals 2 | . 2 . Fabricators . | . . . Repair Stations . | . . . Recycling Units 1 | . 1 . Scanalyzers . | . . . Garrison Access . | . . . Total Hacks 5 | . 5 . Successful 3 | . 3 . Failed 2 | . 2 . Catastrophic 1 | . 1 . Database Lockouts . | . . . Manual 1 | . 1 . Terminals 3 | . 3 . Fabricators . | . . . Repair Stations . | . . . Recycling Units 2 | . 2 . Scanalyzers . | . . . Garrison Access . | . . . Terminal Hacks 1 | . 1 . Branch Access Points 1 | . 1 . Fabricator Hacks . | . . . Repair Station Hacks . | . . . Recycling Unit Hacks 2 | . 2 . Report Inventory 1 | . 1 . Retrieve Matter 1 | . 1 . Scanalyzer . | . . . Garrison Access Hacks . | . . . Unauthorized Hacks . | . . . Terminals . | . . . Fabricators . | . . . Repair Stations . | . . . Recycling Units . | . . . Scanalyzers . | . . . Garrison Access . | . . . Data Cores Recovered . | . . . Used . | . . . Hacking Detections 3 | . 3 . Full Trace Events . | . . . Feedback Events . | . . . Feedback Blocked . | . . . Robot Schematics Acquired . | . . . Robots Built . | . . . Authchips . | . . . Time . | . . . Total Robot Build Rating . | . . . Part Schematics Acquired . | . . . Parts Built . | . . . Authchips . | . . . Time . | . . . Total Part Build Rating . | . . . Parts Repaired . | . . . Time . | . . . Parts Recycled . | . . . Recycled Matter . | . . . Retrieved Matter . | . . . Retrieved Components . | . . . Parts Scanalyzed . | . . . Part Schematics Acquired . | . . . Parts Damaged . | . . . Bothacking | -11 -10 -10 ------------ Run | Yrd Mat Min Used RIF Installer . | . . . Robots Hacked . | . . . Non-combat . | . . . Combat . | . . . Robot Hacks Applied . | . . . Relay Couplers Released . | . . . Fabnet Peak Effective % . | . . . Robots Rewired . | . . . Allies Hacked . | . . . Hacks Repelled . | . . . Allies | -11 -10 -10 -------- Run | Yrd Mat Min Total Allies . | . . . Largest Group . | . . . Highest-Rated Group . | . . . Highest-Rated Ally . | . . . Total Orders . | . . . Ally Attacks . | . . . Total Damage . | . . . Kills . | . . . Allies Corrupted . | . . . Allies Melted . | . . . Intel | -11 -10 -10 ------- Run | Yrd Mat Min Active Infowar (turns) . | . . . Robot Analysis Total . | . . . Derelict Logs Recovered . | . . . Drone Launches . | . . . Drone Recoveries . | . . . Exploration | -11 -10 -10 ------------- Run | Yrd Mat Min Turns Passed 244 | 55 135 54 Spaces Moved 296 | 46 172 78 Core 12 | 4 . 8 Treads . | . . . Legs 8 | 8 . . Wheels 82 | 34 48 . Hover . | . . . Flight 194 | . 124 70 Fastest Speed 37 | 50 37 37 Average Speed 57 | 85 53 50 Slowest Speed 150 | 120 95 150 Overloaded Moves . | . . . Propulsion Burnouts . | . . . Robots Hopped 2 | . 1 1 Potential Cave-ins 1 | . . 1 Cave-ins Triggered . | . . . Exploration Rate (%) 23 | 3 33 34 Regions Visited 2 Branch Regions 1 Pre-discovered Areas . | . . . Known Exits Taken 1 | . 1 . Unknown Exits Taken 1 | 1 . . Scrap Searched . | . . . Spaces Dug . | . . . Terrain Destroyed 6 | . . 6 Melee . | . . . Projectile . | . . . AOE 6 | . . 6 Terrain Rammed . | . . . Walls Destroyed . | . . . Machines Disabled . | . . . Actions | -11 -10 -10 --------- Run | Yrd Mat Min Total 347 | 57 205 85 Wait 9 | . 9 . Move 290 | 45 169 76 Hop 2 | . 1 1 Pick Up 11 | 4 7 . Fast Attach 7 | 5 1 1 Attach 3 | 1 2 . Detach 3 | . 3 . Swap 5 | 2 2 1 Drop 5 | . 4 1 Fire 12 | . 7 5 Melee . | . . . Ram . | . . . Kick . | . . . Crush . | . . . Escape Stasis . | . . . Rewire . | . . . Trap . | . . . Miscellaneous . | . . . Route ------- -11/Scrapyard -10/Materials (discovered 2 exits: *Min x2) -10/Mines (discovered 1 exit: [*Mat]) History --------- Turn | Location | Event 6 | -11/Scrapyard | Discovered new exit (range 15) 56 | -11/Scrapyard | Entered Materials 140 | -10/Materials | Identified exit to Mines 191 | -10/Materials | Entered Mines 222 | -10/Mines | YI-UF0 nonchalantly dropped a Grenade Launcher on the ground 231 | -10/Mines | Discovered new exit (range 10) 236 | -10/Mines | Core integrity fell below 50% 244 | -10/Mines | Core integrity fell below 20% 245 | -10/Mines | Destroyed by YI-UF0 with YI-UF0's Doublenader Last Messages --------------- Destroyed Grenade Launcher. The unstable cave ceiling collapses. K-01 Serf destroyed. YI-UF0: "KAPOW!" R-06 Scavenger destroyed. EXIT=FOUND S-10 Pest destroyed. Flight Unit destroyed. R-06 Scavenger collects Flight Unit. The unstable cave ceiling collapses. Assault Rifle destroyed. U-05 Engineer lays Concrete. The unstable cave ceiling collapses. U-05 Engineer lays Concrete. K-01 Serf collects debris. Hacking Suite destroyed. U-05 Engineer lays Concrete. Sml. Storage Unit destroyed. YI-UF0: "BOOSH!" R-06 Scavenger destroyed. Map ----- +----------------------------------------------------+ | ?????????????????????????????????????????????????? | | ?????????????????????????????????????????????????? | | ?????????????????????????????????????????????????? | | ?????????????????????????????????????????????????? | | ?????????????????????????????????????????????????? | | ?????????????????????????????????????????????????? | | ?????????????????????????????????????????????????? | | ?????????????????????????????????????????????????? | | ?????????????????????????????????????????????????? | | ???????????????????????????????????? ???????????? | | ???????????????????????????????????# #??????????? | | ???????????????????????????????????# ???##?????? | | ??????????????????????????????????? ?? #?????? | | ??????????????????????????????????## """ ##????? | | ?????????????????????????????????## """ ????? | | ??????????????????????????????#### """ ?????? | | ??????????????????####???????## #?????? | | ??????????????????? ???????# #?????? | | ???????????????????? ???????# #?????# | | ???????????????????## #???????# #??????# | | ???????????????????# ####????# #???????# | | ???????????????????# < ##????# #??????## | | ????????????????????# ##???# ######## | | ????????????????##### =% ##### ## " | | ????????????????# ## # ### ## " | | ???????????????### k =@ ##?# " | | ??????????????## u## #??# ## | | ??????????????# ! ### #### ## | | ?????????????## % #?## ## | | ?????####### # % #??##### | | ?? $ # ##??????# ##### | | ?? g [ # # #???????# ????# ## | | ?? ## # #??????? ?????# ## | | ????? ???????## #??????#??????# #? | | ??????????????## #?????????????# #? | | ???????????????# #### # #?????????????# #? | | ???????????????# ?? ######?????????????# # | | ???????????????# ?? #?????????????????# | | ???????????????## ????????????????# | | ????????????????#### ????????????????? ? | | ????????????????????# ???????????????? #? | | ????????????????????## ???????????????? #?? | | ?????????????????????## #???????????????#??? | | ??????????????????????# ##??????????????????? | | ??????????????????????? ##???????????????????? | | ??????????????????????? #?????????????????????? | | ??????????????????????? #???????????????????????? | | ?????????????????????????????????????????????????? | | ?????????????????????????????????????????????????? | | ?????????????????????????????????????????????????? | +----------------------------------------------------+ Best States ------------- Heat Dissipation 25 Energy Generation 10 Energy Capacity 125 Matter Stores 226 Matter Capacity 300 Sight Range 16 Terrain Scan Density 10 Propulsion Shielding 33 Evasion (%) 62 Offensive Hacking 10 Item Schematics ----------------- None Robot Schematics ------------------ None Fabricated ------------ Nothing Repaired ---------- Nothing Alien Tech Used ----------------- None Achievements -------------- None Challenges ------------ None Game ------ Seed flyhack1 Manual? 1 Play Time 00:06:22 Cumulative 45.0 hours Start 2025.05.26 @ 16:00:04 End 2025.05.26 @ 16:05:13 Sessions 1 Manual Loads 0 Difficulty Rogue Special Mode None Game No. 76 Rogue 58 Adventurer 17 Explorer 1 Win Type - Total 3 Types 3/0/0/0/0/0/0/0/0/0 Lore% 14 Gallery% 35 Achievement% 33 Wizard Run 0 Options --------- Layout 1 ASCII 0 Keyboard 0 Movement Arrows Keybinds 0 Fullscreen 1 Font 24/Smallcaps Map View 50x35 Zoom Use 0% Tactical HUD 0 Map Filters NONE Filters NONE Steam 1 RUN: cbbba706-9195-41b5-94fc-78c67972abde